bitfinex/quotes_BTCUSD_20250607
["timestamp","ask_amount","ask_price","bid_price","bid_amount"]
[1749285459523,0.19049433,104990.0,104980.0,1.53024135]
[1749285459739,0.19049433,104990.0,104980.0,0.98094221]
[1749285462152,0.19049433,104990.0,104980.0,0.99046765]
[1749285465441,0.18916078,104990.0,104980.0,0.99046765]
[1749285465656,0.18771417,104990.0,104980.0,0.99046765]
[1749285469286,0.18771417,104990.0,104980.0,0.98094221]
[1749285470362,0.18771417,104990.0,104980.0,0.97141668]
[1749285472137,0.18771417,104990.0,104980.0,0.97075311]
[1749285474332,0.18771417,104990.0,104980.0,0.78024064]
[1749285482118,0.18771417,104990.0,104980.0,0.48187502]
[1749285482344,0.18771417,104990.0,104980.0,0.75517502]
[1749285487037,0.18771417,104990.0,104980.0,0.73957502]
[1749285487259,0.21851417,104990.0,104980.0,0.25731038]
[1749285487506,0.23637487,104990.0,104980.0,0.63339038]
[1749285487734,0.21851417,104990.0,104980.0,0.63339038]
[1749285488806,0.2363752,104990.0,104980.0,0.63339038]
[1749285489016,0.21851417,104990.0,104980.0,0.63339038]
[1749285489199,0.23637521,104990.0,104980.0,0.63339038]
[1749285489467,0.23637497,104990.0,104980.0,0.63339038]
[1749285489685,0.23637484,104990.0,104980.0,0.63339038]
[1749285489899,0.21851417,104990.0,104980.0,0.63339038]
[1749285490114,0.23637484,104990.0,104980.0,0.63339038]
[1749285490333,0.23637486,104990.0,104980.0,0.63339038]
[1749285490546,0.21851417,104990.0,104980.0,0.63339038]
[1749285491006,0.23637486,104990.0,104980.0,0.63339038]
[1749285491650,0.21851417,104990.0,104980.0,0.63339038]
[1749285492139,0.23637471,104990.0,104980.0,0.63339038]
[1749285492352,0.21851417,104990.0,104980.0,0.63339038]
[1749285492563,0.23637484,104990.0,104980.0,0.63339038]
[1749285492988,0.21851417,104990.0,104980.0,0.63339038]
[1749285493454,0.23637223,104990.0,104980.0,0.63339038]
[1749285493924,0.21851417,104990.0,104980.0,0.63339038]
[1749285494366,0.23637223,104990.0,104980.0,0.63339038]
[1749285494756,0.21851417,104990.0,104980.0,0.63339038]
[1749285496193,0.20281417,104990.0,104980.0,0.63339038]
[1749285496395,0.18771417,104990.0,104980.0,0.63339038]
[1749285496597,0.20557194,104990.0,104980.0,0.63339038]
[1749285497016,0.20557175,104990.0,104980.0,0.63339038]
[1749285497427,0.18771417,104990.0,104980.0,0.63339038]
[1749285497602,0.20557175,104990.0,104980.0,0.63339038]
[1749285498718,0.18771417,104990.0,104980.0,0.63339038]
[1749285512540,0.20557079,104990.0,104980.0,0.63339038]
[1749285513185,0.20557249,104990.0,104980.0,0.63339038]
[1749285513400,0.18771417,104990.0,104980.0,0.63339038]
[1749285513634,0.20557248,104990.0,104980.0,0.63339038]
[1749285513825,0.18771417,104990.0,104980.0,0.63339038]
[1749285514474,0.20557247,104990.0,104980.0,0.63339038]
[1749285515111,0.20557246,104990.0,104980.0,0.63339038]
[1749285515554,0.18771417,104990.0,104980.0,0.63339038]
[1749285515779,0.20557246,104990.0,104980.0,0.63339038]
[1749285515999,0.18771417,104990.0,104980.0,0.63339038]
[1749285516481,0.20557304,104990.0,104980.0,0.63339038]
[1749285516929,0.21527024,104990.0,104980.0,0.63339038]
[1749285517393,0.19741137,104990.0,104980.0,0.63339038]
[1749285517843,0.20557213,104990.0,104980.0,0.63339038]
[1749285518339,0.20557104,104990.0,104980.0,0.63339038]
[1749285518539,0.18771417,104990.0,104980.0,0.63339038]
[1749285518894,0.20557123,104990.0,104980.0,0.63339038]
[1749285519105,0.18771417,104990.0,104980.0,0.63339038]
[1749285519439,0.20557097,104990.0,104980.0,0.63339038]
[1749285520248,0.18771417,104990.0,104980.0,0.63339038]
[1749285520455,0.20557193,104990.0,104980.0,0.63339038]
[1749285521868,0.21500841,104990.0,104980.0,0.63339038]
[1749285522286,0.19715065,104990.0,104980.0,0.63339038]
[1749285522651,0.21500843,104990.0,104980.0,0.63339038]
[1749285523197,0.21501157,104990.0,104980.0,0.63339038]
[1749285523962,0.19715065,104990.0,104980.0,0.63339038]
[1749285524285,0.21501179,104990.0,104980.0,0.63339038]
[1749285524988,0.2150118,104990.0,104980.0,0.63339038]
[1749285525192,0.21501179,104990.0,104980.0,0.63339038]
[1749285527351,0.19715065,104990.0,104980.0,0.63339038]
[1749285527596,0.21501201,104990.0,104980.0,0.63339038]
[1749285528010,0.19715065,104990.0,104980.0,0.63339038]
[1749285528437,0.21501201,104990.0,104980.0,0.63339038]
[1749285528773,0.10055516,105000.0,104980.0,0.63339038]
[1749285528984,0.19049433,104990.0,104980.0,0.63339038]
[1749285530639,0.19049433,104990.0,104980.0,0.63239038]
[1749285531900,0.19049433,104990.0,104980.0,0.63339038]
[1749285532310,0.19996042,104990.0,104980.0,0.63339038]
[1749285535246,0.19996042,104990.0,104980.0,0.64919038]
[1749285536863,0.19996042,104990.0,104980.0,0.66539038]
[1749285539319,0.19049433,104990.0,104980.0,0.66539038]
[1749285540831,0.2083581,104990.0,104980.0,0.66539038]
[1749285541067,0.20835816,104990.0,104980.0,0.66539038]
[1749285542529,0.20835824,104990.0,104980.0,0.66539038]
[1749285542780,0.20835796,104990.0,104980.0,0.66539038]
[1749285542989,0.19049433,104990.0,104980.0,0.66539038]
[1749285543200,0.20835892,104990.0,104980.0,0.66539038]
[1749285544648,0.2083589,104990.0,104980.0,0.66539038]
[1749285545403,0.2083589,104990.0,104980.0,0.64919038]
[1749285545612,0.20835892,104990.0,104980.0,0.64919038]
[1749285546859,0.19049433,104990.0,104980.0,0.64919038]
[1749285547063,0.20835891,104990.0,104980.0,0.64919038]
[1749285547672,0.2083589,104990.0,104980.0,0.64919038]
[1749285549092,0.19049433,104990.0,104980.0,0.64919038]
[1749285549539,0.20835679,104990.0,104980.0,0.64919038]
[1749285549754,0.19049433,104990.0,104980.0,0.64919038]
[1749285549977,0.20835685,104990.0,104980.0,0.64919038]
[1749285551108,0.19049433,104990.0,104980.0,0.64919038]
[1749285551812,0.20835687,104990.0,104980.0,0.64919038]
[1749285553267,0.19049433,104990.0,104980.0,0.64919038]
[1749285553674,0.20835687,104990.0,104980.0,0.64919038]
[1749285553856,0.20835684,104990.0,104980.0,0.64919038]
[1749285554488,0.19049433,104990.0,104980.0,0.64919038]
[1749285554698,0.19049433,104990.0,104980.0,0.66509038]
[1749285555568,0.20835406,104990.0,104980.0,0.66509038]
[1749285555781,0.20835342,104990.0,104980.0,0.66509038]
[1749285555992,0.20835342,104990.0,104980.0,0.64919038]
[1749285556195,0.20835403,104990.0,104980.0,0.64919038]
[1749285556410,0.20835402,104990.0,104980.0,0.64919038]
[1749285556620,0.19049433,104990.0,104980.0,0.64919038]
[1749285557070,0.20835395,104990.0,104980.0,0.64919038]
[1749285557282,0.20835392,104990.0,104980.0,0.64919038]
[1749285557695,0.20835392,104990.0,104980.0,0.66419038]
[1749285557917,0.19049433,104990.0,104980.0,0.66419038]
[1749285558122,0.20835392,104990.0,104980.0,0.66419038]
[1749285558330,0.19049433,104990.0,104980.0,0.66419038]
[1749285558535,0.20835392,104990.0,104980.0,0.66419038]
[1749285558742,0.19049433,104990.0,104980.0,0.66419038]
[1749285558952,0.20835392,104990.0,104980.0,0.66419038]
[1749285559652,0.20835388,104990.0,104980.0,0.66419038]
[1749285559858,0.19049433,104990.0,104980.0,0.66419038]
[1749285560267,0.20835377,104990.0,104980.0,0.66419038]
[1749285560653,0.19049433,104990.0,104980.0,0.66419038]
[1749285560889,0.20835376,104990.0,104980.0,0.66419038]
[1749285561592,0.19049433,104990.0,104980.0,0.66419038]
[1749285562003,0.20835316,104990.0,104980.0,0.66419038]
[1749285562210,0.19049433,104990.0,104980.0,0.66419038]
[1749285562655,0.208353,104990.0,104980.0,0.66419038]
[1749285563351,0.19049433,104990.0,104980.0,0.66419038]
[1749285563557,0.208353,104990.0,104980.0,0.66419038]
[1749285564142,0.19049433,104990.0,104980.0,0.66419038]
[1749285564650,0.20835301,104990.0,104980.0,0.66419038]
[1749285565246,0.19049433,104990.0,104980.0,0.66419038]
[1749285565450,0.20835301,104990.0,104980.0,0.66419038]
[1749285565653,0.20835273,104990.0,104980.0,0.66419038]
[1749285565857,0.19049433,104990.0,104980.0,0.66419038]
[1749285566699,0.20835273,104990.0,104980.0,0.66419038]
[1749285567310,0.19049433,104990.0,104980.0,0.66419038]
[1749285567514,0.20835273,104990.0,104980.0,0.66419038]
[1749285568143,0.20835258,104990.0,104980.0,0.66419038]
[1749285568779,0.19049433,104990.0,104980.0,0.66419038]
[1749285569613,0.20835255,104990.0,104980.0,0.66419038]
[1749285569818,0.20835256,104990.0,104980.0,0.66419038]
[1749285570610,0.19049433,104990.0,104980.0,0.66419038]
[1749285571222,0.20835258,104990.0,104980.0,0.66419038]
[1749285571707,0.19049433,104990.0,104980.0,0.66419038]
[1749285571921,0.20835258,104990.0,104980.0,0.66419038]
[1749285572456,0.19049433,104990.0,104980.0,0.66419038]
[1749285572663,0.20835241,104990.0,104980.0,0.66419038]
[1749285572868,0.19049433,104990.0,104980.0,0.66419038]
[1749285573074,0.20835241,104990.0,104980.0,0.66419038]
[1749285573277,0.19049433,104990.0,104980.0,0.66419038]
[1749285573482,0.20835241,104990.0,104980.0,0.66419038]
[1749285573688,0.19049433,104990.0,104980.0,0.66419038]
[1749285573905,0.20835376,104990.0,104980.0,0.66419038]
[1749285574089,0.20834705,104990.0,104980.0,0.66419038]
[1749285574536,0.19049433,104990.0,104980.0,0.66419038]
[1749285574913,0.20834714,104990.0,104980.0,0.66419038]
[1749285575454,0.20834652,104990.0,104980.0,0.66419038]
[1749285575959,0.19049433,104990.0,104980.0,0.66419038]
[1749285576285,0.20834652,104990.0,104980.0,0.85470285]
[1749285576490,0.19049433,104990.0,104980.0,0.85470285]
[1749285576717,0.20834652,104990.0,104980.0,0.85470285]
[1749285577878,0.20834665,104990.0,104980.0,0.85470285]
[1749285578461,0.19049433,104990.0,104980.0,0.66419038]
[1749285578668,0.20834665,104990.0,104980.0,0.66419038]
[1749285579008,0.20834665,104990.0,104980.0,0.85470285]
[1749285579419,0.20834717,104990.0,104980.0,0.66419038]
[1749285579624,0.19049433,104990.0,104980.0,0.66419038]
[1749285580027,0.20834721,104990.0,104980.0,0.66419038]
[1749285580233,0.19049433,104990.0,104980.0,0.66419038]
[1749285580442,0.20834721,104990.0,104980.0,0.66419038]
[1749285581123,0.20834822,104990.0,104980.0,0.66419038]
[1749285581323,0.20834823,104990.0,104980.0,0.66419038]
[1749285581520,0.20834825,104990.0,104980.0,0.66419038]
[1749285583157,0.19049433,104990.0,104980.0,0.85470285]
[1749285583355,0.20834825,104990.0,104980.0,0.85470285]
[1749285583822,0.20834825,104990.0,104980.0,0.86422847]
[1749285584100,0.20834825,104990.0,104980.0,0.85470285]
[1749285584533,0.20834874,104990.0,104980.0,0.85470285]
[1749285584814,0.19049433,104990.0,104980.0,0.85470285]
[1749285585047,0.20834874,104990.0,104980.0,0.85470285]
[1749285585656,0.19049433,104990.0,104980.0,0.66419038]
[1749285585885,0.20834871,104990.0,104980.0,0.66419038]
[1749285586493,0.2083492,104990.0,104980.0,0.66419038]
[1749285587134,0.19049433,104990.0,104980.0,0.66419038]
[1749285587492,0.2083492,104990.0,104980.0,0.66419038]
[1749285588343,0.19049433,104990.0,104980.0,0.66419038]
[1749285588529,0.2083492,104990.0,104980.0,0.66419038]
[1749285589823,0.20834945,104990.0,104980.0,0.66419038]
[1749285590033,0.19049433,104990.0,104980.0,0.66419038]
[1749285590246,0.20834992,104990.0,104980.0,0.66419038]
[1749285590461,0.20835015,104990.0,104980.0,0.66419038]
[1749285590882,0.20835022,104990.0,104980.0,0.66419038]
[1749285592212,0.19049433,104990.0,104980.0,0.66419038]
[1749285592419,0.20835048,104990.0,104980.0,0.66419038]
[1749285592551,0.20835049,104990.0,104980.0,0.66419038]
[1749285593515,0.20835096,104990.0,104980.0,0.66419038]
[1749285593909,0.20835098,104990.0,104980.0,0.66419038]
[1749285594297,0.19049433,104990.0,104980.0,0.66419038]
[1749285594518,0.20835098,104990.0,104980.0,0.66419038]
[1749285595135,0.20835126,104990.0,104980.0,0.66419038]
[1749285595465,0.19049433,104990.0,104980.0,0.66419038]
[1749285595880,0.20835126,104990.0,104980.0,0.66419038]
[1749285596840,0.20835126,104990.0,104980.0,0.64092]
[1749285597290,0.2083515,104990.0,104980.0,0.64092]
[1749285597480,0.19049433,104990.0,104980.0,0.64092]
[1749285597715,0.2083515,104990.0,104980.0,0.64092]
[1749285598601,0.19049433,104990.0,104980.0,0.64092]
[1749285598811,0.20835225,104990.0,104980.0,0.64092]
[1749285599212,0.20835227,104990.0,104980.0,0.64092]
[1749285599813,0.20835227,104990.0,104980.0,0.65652]
[1749285600436,0.20835224,104990.0,104980.0,0.65652]
[1749285600643,0.20835202,104990.0,104980.0,0.65652]
[1749285600846,0.19049433,104990.0,104980.0,0.65652]
[1749285601308,0.20835332,104990.0,104980.0,0.65652]
[1749285601515,0.20835337,104990.0,104980.0,0.65652]
[1749285601720,0.20835339,104990.0,104980.0,0.65652]
[1749285602643,0.19049433,104990.0,104980.0,0.65652]
[1749285603239,0.20835355,104990.0,104980.0,0.65652]
[1749285603442,0.20835335,104990.0,104980.0,0.65652]
[1749285603651,0.20835373,104990.0,104980.0,0.65652]
[1749285604062,0.19049433,104990.0,104980.0,0.65652]
[1749285604278,0.20835675,104990.0,104980.0,0.65652]
[1749285604483,0.20835686,104990.0,104980.0,0.65652]
[1749285604702,0.19049433,104990.0,104980.0,0.65652]
[1749285605067,0.20835668,104990.0,104980.0,0.65652]
[1749285605273,0.2083566,104990.0,104980.0,0.65652]
[1749285605472,0.20835658,104990.0,104980.0,0.65652]
[1749285605679,0.19049433,104990.0,104980.0,0.65652]
[1749285605889,0.20835658,104990.0,104980.0,0.65652]
[1749285606091,0.19049433,104990.0,104980.0,0.65652]
[1749285606287,0.20835658,104990.0,104980.0,0.65652]
[1749285606692,0.19049433,104990.0,104980.0,0.65652]
[1749285607024,0.20835658,104990.0,104980.0,0.65652]
[1749285607229,0.19049433,104990.0,104980.0,0.65652]
[1749285607566,0.20835659,104990.0,104980.0,0.65652]
[1749285608211,0.19049433,104990.0,104980.0,0.65652]
[1749285608423,0.20835659,104990.0,104980.0,0.65652]
[1749285609163,0.19049433,104990.0,104980.0,0.65652]
[1749285609454,0.20835642,104990.0,104980.0,0.65652]
[1749285610166,0.20835646,104990.0,104980.0,0.65652]
[1749285610377,0.19049433,104990.0,104980.0,0.65652]
[1749285610585,0.20835646,104990.0,104980.0,0.65652]
[1749285610989,0.19049433,104990.0,104980.0,0.65652]
[1749285611194,0.20835646,104990.0,104980.0,0.65652]
[1749285611401,0.19049433,104990.0,104980.0,0.65652]
[1749285611616,0.20835647,104990.0,104980.0,0.65652]
[1749285612025,0.2083565,104990.0,104980.0,0.65652]
[1749285612869,0.19049433,104990.0,104980.0,0.65652]
[1749285613072,0.20835611,104990.0,104980.0,0.66604562]
[1749285613485,0.19049433,104990.0,104980.0,0.66604562]
[1749285613708,0.2083561,104990.0,104980.0,0.66604562]
[1749285613903,0.19049433,104990.0,104980.0,0.66604562]
[1749285614108,0.20835609,104990.0,104980.0,0.85655809]
[1749285614725,0.19049433,104990.0,104980.0,0.85655809]
[1749285614932,0.20835607,104990.0,104980.0,0.85655809]
[1749285615144,0.20835607,104990.0,104980.0,0.65652]
[1749285615781,0.19049433,104990.0,104980.0,0.65652]
[1749285616194,0.20835607,104990.0,104980.0,0.65652]
[1749285616418,0.20835605,104990.0,104980.0,0.65652]
[1749285616618,0.19049433,104990.0,104980.0,0.65652]
[1749285616843,0.22621777,104990.0,104980.0,0.856558]
[1749285618291,0.2262176,104990.0,104980.0,0.65652]
[1749285618494,0.20835605,104990.0,104980.0,0.65652]
[1749285618671,0.2262176,104990.0,104980.0,0.65652]
[1749285619099,0.20835605,104990.0,104980.0,0.66604562]
[1749285619305,0.2262176,104990.0,104980.0,0.66604562]
[1749285619508,0.20835605,104990.0,104980.0,0.67557115]
[1749285619685,0.20835605,104990.0,104980.0,0.86608362]
[1749285620201,0.2274052,104990.0,104980.0,0.87560906]
[1749285620814,0.24526709,104990.0,104980.0,0.87560906]
[1749285621022,0.2274052,104990.0,104980.0,0.87560906]
[1749285621232,0.24526709,104990.0,104980.0,0.87560906]
[1749285621436,0.2274052,104990.0,104980.0,0.87560906]
[1749285621639,0.24526708,104990.0,104980.0,0.87560906]
[1749285621844,0.2274052,104990.0,104980.0,0.88513441]
[1749285622045,0.24526708,104990.0,104980.0,0.88513441]
[1749285622248,0.2274052,104990.0,104980.0,0.88513441]
[1749285622457,0.24526708,104990.0,104980.0,0.88513441]
[1749285622678,0.23574264,104990.0,104980.0,0.87560906]
[1749285623029,0.21788076,104990.0,104980.0,0.87560906]
[1749285623251,0.23574263,104990.0,104980.0,0.87560906]
[1749285623513,0.21788076,104990.0,104980.0,0.88513441]
[1749285623706,0.21788076,104990.0,104980.0,0.87560906]
[1749285624123,0.23574263,104990.0,104980.0,0.87560906]
[1749285624948,0.23574263,104990.0,104980.0,0.66604562]
[1749285625165,0.23574267,104990.0,104980.0,0.67557106]
[1749285625402,0.21788076,104990.0,104980.0,0.67557106]
[1749285625604,0.23574267,104990.0,104980.0,0.66604562]
[1749285625987,0.0547717,104990.0,104980.0,1.53083248]
[1749285626189,0.05595867,104990.0,104980.0,1.53083248]
[1749285634089,0.06548329,104990.0,104980.0,1.53083248]
[1749285635553,0.25597843,104990.0,104980.0,1.5213075]
[1749285635752,0.25597843,104990.0,104980.0,1.53083267]
[1749285638962,0.24645426,104990.0,104980.0,1.53083267]
[1749285639563,0.23692991,104990.0,104980.0,1.53083267]
[1749285640418,0.22740538,104990.0,104980.0,1.5213075]
[1749285641252,0.22740538,104990.0,104980.0,1.53083267]
[1749285642983,0.06299963,104990.0,104980.0,1.53083267]
[1749285646331,0.06299963,104990.0,104980.0,1.54035774]
[1749285646572,0.06299963,104990.0,104980.0,1.53083267]
[1749285647656,0.06299963,104990.0,104980.0,1.5213075]
[1749285648518,0.06299963,104990.0,104980.0,1.51178224]
[1749285648742,0.06299963,104990.0,104980.0,1.52130759]
[1749285650535,0.06299963,104990.0,104980.0,1.53083276]
[1749285652636,0.06299963,104990.0,104980.0,1.52130759]
[1749285653146,0.06299963,104990.0,104980.0,1.51178224]
[1749285653343,0.06299963,104990.0,104980.0,1.52130768]
[1749285653965,0.06299963,104990.0,104980.0,1.21385671]
[1749285654176,0.06299963,104990.0,104980.0,0.75271948]
[1749285655045,0.06299963,104990.0,104980.0,0.7622451]
[1749285655248,0.08085244,104990.0,104980.0,0.7621251]
[1749285655463,0.06299963,104990.0,104980.0,0.7621251]
[1749285655682,0.08085249,104990.0,104980.0,0.7465251]
[1749285655898,0.06299963,104990.0,104980.0,0.7465251]
[1749285657315,0.0808566,104990.0,104980.0,0.7465251]
[1749285657644,0.08085659,104990.0,104980.0,0.7465251]
[1749285657851,0.06299963,104990.0,104980.0,0.7625251]
[1749285658060,0.08085659,104990.0,104980.0,0.7625251]
[1749285659125,0.06299963,104990.0,104980.0,0.7625251]
[1749285659335,0.08085659,104990.0,104980.0,0.7625251]
[1749285660222,0.08085659,104990.0,104980.0,0.7465251]
[1749285660429,0.06299963,104990.0,104980.0,0.7465251]
[1749285660854,0.06299963,104990.0,104980.0,0.7625251]
[1749285661066,0.08085573,104990.0,104980.0,0.7625251]
[1749285661264,0.08085558,104990.0,104980.0,0.7625251]
[1749285662064,0.08085485,104990.0,104980.0,0.7625251]
[1749285662290,0.06299963,104990.0,104980.0,0.7625251]
[1749285662692,0.08085486,104990.0,104980.0,0.7625251]
[1749285662837,0.0808554,104990.0,104980.0,0.7625251]
[1749285663027,0.06299963,104990.0,104980.0,0.7625251]
[1749285663454,0.0808554,104990.0,104980.0,0.7625251]
[1749285663632,0.06299963,104990.0,104980.0,0.7625251]
[1749285663855,0.0808554,104990.0,104980.0,0.7625251]
[1749285664623,0.08085554,104990.0,104980.0,0.7625251]
[1749285665236,0.08085554,104990.0,104980.0,0.75299948]
[1749285665649,0.06299963,104990.0,104980.0,0.75299948]
[1749285665854,0.08085439,104990.0,104980.0,0.75299948]
[1749285666761,0.06299963,104990.0,104980.0,0.75299948]
[1749285667228,0.06299963,104990.0,104980.0,0.73699948]
[1749285669739,0.06299963,104990.0,104980.0,0.92751195]
[1749285670156,0.06299963,104990.0,104980.0,0.94271195]
[1749285671196,0.06299963,104990.0,104980.0,0.95223757]
[1749285672763,0.06299963,104990.0,104980.0,0.94271195]
[1749285673602,0.08084278,104990.0,104980.0,0.94271195]
[1749285674229,0.06299963,104990.0,104980.0,0.94271195]
[1749285674437,0.08084626,104990.0,104980.0,0.94271195]
[1749285674792,0.06299963,104990.0,104980.0,0.94271195]
[1749285674994,0.08084626,104990.0,104980.0,0.94271195]
[1749285676327,0.06299963,104990.0,104980.0,0.94271195]
[1749285676738,0.08084626,104990.0,104980.0,0.94271195]
[1749285677459,0.11284626,104990.0,104980.0,0.72111948]
[1749285677875,0.09499963,104990.0,104980.0,0.72111948]
[1749285678278,0.11286115,104990.0,104980.0,0.72111948]
[1749285678483,0.09499963,104990.0,104980.0,0.72111948]
[1749285678887,0.11286109,104990.0,104980.0,0.72111948]
[1749285679280,0.1128611,104990.0,104980.0,0.72111948]
[1749285679430,0.09499963,104990.0,104980.0,0.72111948]
[1749285679631,0.11286109,104990.0,104980.0,0.72111948]
[1749285679850,0.1128611,104990.0,104980.0,0.72111948]
[1749285680050,0.0973611,104990.0,104980.0,0.72111948]
[1749285680654,0.07949963,104990.0,104980.0,0.72111948]
[1749285680853,0.09736109,104990.0,104980.0,0.72111948]
[1749285681328,0.09735519,104990.0,104980.0,0.72111948]
[1749285681474,0.08085519,104990.0,104980.0,0.72111948]
[1749285683175,0.08085461,104990.0,104980.0,0.72111948]
[1749285684740,0.0808545,104990.0,104980.0,0.72111948]
[1749285685166,0.08085511,104990.0,104980.0,0.72111948]
[1749285685377,0.08085502,104990.0,104980.0,0.72111948]
[1749285685587,0.06299963,104990.0,104980.0,0.72111948]
[1749285685784,0.08085494,104990.0,104980.0,0.72111948]
[1749285686216,0.08085492,104990.0,104980.0,0.72111948]
[1749285686976,0.06299963,104990.0,104980.0,0.72111948]
[1749285687451,0.08085492,104990.0,104980.0,0.72111948]
[1749285688521,0.06299963,104990.0,104980.0,0.72111948]
[1749285688762,0.08085503,104990.0,104980.0,0.72111948]
[1749285690740,0.06299963,104990.0,104980.0,0.72111948]
[1749285690955,0.08085505,104990.0,104980.0,0.72111948]
[1749285691162,0.08085521,104990.0,104980.0,0.72111948]
[1749285691669,0.08085545,104990.0,104980.0,0.72111948]
[1749285692100,0.06299963,104990.0,104980.0,0.72111948]
[1749285692753,0.08085545,104990.0,104980.0,0.72111948]
[1749285693833,0.08085566,104990.0,104980.0,0.72111948]
[1749285695075,0.08085621,104990.0,104980.0,0.72111948]
[1749285695281,0.06299963,104990.0,104980.0,0.72111948]
[1749285695493,0.08085629,104990.0,104980.0,0.72111948]
[1749285695699,0.06299963,104990.0,104980.0,0.72111948]
[1749285695913,0.08085629,104990.0,104980.0,0.72111948]
[1749285696125,0.06299963,104990.0,104980.0,0.72111948]
[1749285696342,0.08085629,104990.0,104980.0,0.72111948]
[1749285697034,0.06299963,104990.0,104980.0,0.72111948]
[1749285697206,0.080857,104990.0,104980.0,0.72111948]
[1749285697364,0.080857,104990.0,104980.0,0.91163195]
[1749285697566,0.06299963,104990.0,104980.0,0.91163195]
[1749285698044,0.080857,104990.0,104980.0,0.91163195]
[1749285698250,0.080857,104990.0,104980.0,0.72111948]
[1749285698981,0.080857,104990.0,104980.0,0.91163195]
[1749285699203,0.06299963,104990.0,104980.0,0.91163195]
[1749285699402,0.08085724,104990.0,104980.0,0.91163195]
[1749285699955,0.06299963,104990.0,104980.0,0.91163195]
[1749285700169,0.08085724,104990.0,104980.0,0.91163195]
[1749285700376,0.08085724,104990.0,104980.0,0.72111948]
[1749285700920,0.08085723,104990.0,104980.0,0.72111948]
[1749285701344,0.08085724,104990.0,104980.0,0.72111948]
[1749285702596,0.06299963,104990.0,104980.0,0.72111948]
[1749285702990,0.08085774,104990.0,104980.0,0.72111948]
[1749285703210,0.08085769,104990.0,104980.0,0.72111948]
[1749285703363,0.06299963,104990.0,104980.0,0.73671948]
[1749285703569,0.0808584,104990.0,104980.0,0.73671948]
[1749285704385,0.0808584,104990.0,104980.0,0.72111948]
[1749285704792,0.08085965,104990.0,104980.0,0.72111948]
[1749285706336,0.08085962,104990.0,104980.0,0.72111948]
[1749285706741,0.06299963,104990.0,104980.0,0.72111948]
[1749285707190,0.08086204,104990.0,104980.0,0.72111948]
[1749285708070,0.06299963,104990.0,104980.0,0.72111948]
[1749285708707,0.08086169,104990.0,104980.0,0.72111948]
[1749285711310,0.08086146,104990.0,104980.0,0.72111948]
[1749285713027,0.08086146,104990.0,104980.0,0.73671948]
[1749285713654,0.06299963,104990.0,104980.0,0.73671948]
[1749285713876,0.08086144,104990.0,104980.0,0.73671948]
[1749285714392,0.08086143,104990.0,104980.0,0.73671948]
[1749285715214,0.08086128,104990.0,104980.0,0.73671948]
[1749285715854,0.06299963,104990.0,104980.0,0.73671948]
[1749285716596,0.08086128,104990.0,104980.0,0.73671948]
[1749285717355,0.08086129,104990.0,104980.0,0.73671948]
[1749285717551,0.06299963,104990.0,104980.0,0.73671948]
[1749285717760,0.08086123,104990.0,104980.0,0.73671948]
[1749285719274,0.08086119,104990.0,104980.0,0.73671948]
[1749285719700,0.06299963,104990.0,104980.0,0.73671948]
[1749285719908,0.08086119,104990.0,104980.0,0.73671948]
[1749285720888,0.06299963,104990.0,104980.0,0.73671948]
[1749285721094,0.0808612,104990.0,104980.0,0.73671948]
[1749285721300,0.06299963,104990.0,104980.0,0.73671948]
[1749285721740,0.08086119,104990.0,104980.0,0.73671948]
[1749285722758,0.08086122,104990.0,104980.0,0.73671948]
[1749285722977,0.08085912,104990.0,104980.0,0.73671948]
[1749285723407,0.06299963,104990.0,104980.0,0.62472]
[1749285723530,0.08085911,104990.0,104980.0,0.62472]
[1749285724590,0.08086071,104990.0,104980.0,0.62472]
[1749285725380,0.08086076,104990.0,104980.0,0.62472]
[1749285726339,0.06299963,104990.0,104980.0,0.62472]
[1749285726467,0.08086071,104990.0,104980.0,0.62472]
[1749285726668,0.06299963,104990.0,104980.0,0.62472]
[1749285727102,0.19049433,104990.0,104980.0,0.62472]
[1749285728467,0.19169428,104990.0,104980.0,0.62472]
[1749285729195,0.19169428,104990.0,104980.0,0.64012]
[1749285730560,0.19169428,104990.0,104980.0,0.62472]
[1749285734154,0.19169428,104990.0,104980.0,0.64012]
[1749285738888,0.19169428,104990.0,104980.0,0.62472]
[1749285739074,0.20955668,104990.0,104980.0,0.62472]
[1749285739286,0.19049433,104990.0,104980.0,0.62472]
[1749285739424,0.20955668,104990.0,104980.0,0.62472]
[1749285739625,0.20835673,104990.0,104980.0,0.62472]
[1749285740172,0.20835675,104990.0,104980.0,0.62472]
[1749285741651,0.20835675,104990.0,104980.0,0.64062]
[1749285742292,0.19049433,104990.0,104980.0,0.64062]
[1749285742497,0.20955671,104990.0,104980.0,0.64062]
[1749285742685,0.20835676,104990.0,104980.0,0.64062]
[1749285742875,0.19049433,104990.0,104980.0,0.64062]
[1749285743069,0.20955671,104990.0,104980.0,0.64062]
[1749285743297,0.20835676,104990.0,104980.0,0.64062]
[1749285744467,0.20835674,104990.0,104980.0,0.64062]
[1749285745570,0.19049433,104990.0,104980.0,0.64062]
[1749285745826,0.19169428,104990.0,104980.0,0.64062]
[1749285746025,0.20955671,104990.0,104980.0,0.64062]
[1749285746228,0.19049433,104990.0,104980.0,0.64062]
[1749285746429,0.20955671,104990.0,104980.0,0.64062]
[1749285746635,0.20835676,104990.0,104980.0,0.64062]
[1749285747042,0.20835676,104990.0,104980.0,0.35246]
[1749285747246,0.19049433,104990.0,104980.0,0.6246]
[1749285747448,0.20955637,104990.0,104980.0,0.6246]
[1749285747704,0.20835637,104990.0,104980.0,0.6246]
[1749285747864,0.19049433,104990.0,104980.0,0.6246]
[1749285748069,0.20955632,104990.0,104980.0,0.6246]
[1749285748274,0.20835637,104990.0,104980.0,0.6246]
[1749285749241,0.2083537,104990.0,104980.0,0.6246]
[1749285749586,0.19049433,104990.0,104980.0,0.6246]
[1749285749781,0.20955365,104990.0,104980.0,0.6246]
[1749285749990,0.2083537,104990.0,104980.0,0.6246]
[1749285751000,0.20835274,104990.0,104980.0,0.6246]
[1749285751205,0.19049433,104990.0,104980.0,0.6246]
[1749285751496,0.19169428,104990.0,104980.0,0.6246]
[1749285751912,0.20955254,104990.0,104980.0,0.6246]
[1749285752036,0.20835259,104990.0,104980.0,0.6246]
[1749285753546,0.19049433,104990.0,104980.0,0.6246]
[1749285753753,0.20955254,104990.0,104980.0,0.6246]
[1749285753996,0.20835259,104990.0,104980.0,0.6246]
[1749285754768,0.19049433,104990.0,104980.0,0.6246]
[1749285754997,0.19169428,104990.0,104980.0,0.6246]
[1749285755169,0.20955176,104990.0,104980.0,0.6246]
[1749285755372,0.20835181,104990.0,104980.0,0.6246]
[1749285756180,0.20835145,104990.0,104980.0,0.6246]
[1749285756607,0.19049433,104990.0,104980.0,0.6246]
[1749285756808,0.19169428,104990.0,104980.0,0.6246]
[1749285757042,0.2095514,104990.0,104980.0,0.6246]
[1749285757226,0.20835145,104990.0,104980.0,0.6246]
[1749285757997,0.20835105,104990.0,104980.0,0.6246]
[1749285758372,0.19049433,104990.0,104980.0,0.6246]